[Event "*** Titled Tuesday Blitz"]
[Site "Chess.com"]
[Date "2020.03.03"]
[Round "8"]
[White "RiskyDecision"]
[Black "Eliwood44"]
[Result "1-0"]
[WhiteElo "2605"]
[BlackElo "2306"]
[TimeControl "180+1"]
[EndTime "14:30:20 PST"]
[Termination "RiskyDecision won by resignation"]

1. d4 {[%clk 0:03:00.8]} 1... Nf6 {[%clk 0:02:59.8]} 2. c4 {[%clk 0:03:01]} 2...
e6 {[%clk 0:02:50.8]} 3. g3 {[%clk 0:03:01.5]} 3... d5 {[%clk 0:02:50.7]} 4. Nf3
{[%clk 0:03:02]} 4... dxc4 {[%clk 0:02:49.5]} 5. Bg2 {[%clk 0:03:02.4]} 5... a6
{[%clk 0:02:48.3]} 6. O-O {[%clk 0:03:01.4]} 6... Nc6 {[%clk 0:02:47.5]} 7. e3
{[%clk 0:02:53.9]} 7... Bd6 {[%clk 0:02:45.8]} 8. Nbd2 {[%clk 0:02:42.7]} 8...
b5 {[%clk 0:02:18]} 9. Ne5 {[%clk 0:02:34]} 9... Bxe5 {[%clk 0:02:05.7]} 10.
Bxc6+ {[%clk 0:02:32.4]} 10... Bd7 {[%clk 0:02:04.8]} 11. Bxa8 {[%clk
0:02:21.8]} 11... Qxa8 {[%clk 0:02:04.2]} 12. dxe5 {[%clk 0:02:21.8]} 12... h5
{[%clk 0:02:03]} 13. exf6 {[%clk 0:02:17.3]} 13... h4 {[%clk 0:02:02.7]} 14.
fxg7 {[%clk 0:02:11.6]} 14... Rg8 {[%clk 0:02:02.5]} 15. Qh5 {[%clk 0:02:02.9]}
1-0

[Event "*** Titled Tuesday Blitz"]
[Site "Chess.com"]
[Date "2020.03.03"]
[Round "8"]
[White "BeanScreen"]
[Black "ChelsieMonica"]
[Result "1-0"]
[WhiteElo "2650"]
[BlackElo "2200"]
[TimeControl "180+1"]
[EndTime "14:31:21 PST"]
[Termination "BeanScreen won by checkmate"]

1. e4 {[%clk 0:03:00.7]} 1... e5 {[%clk 0:02:59.9]} 2. Nf3 {[%clk 0:03:01.1]}
2... Nc6 {[%clk 0:03:00]} 3. Bc4 {[%clk 0:03:01.9]} 3... Bc5 {[%clk 0:02:59.7]}
4. c3 {[%clk 0:03:02.7]} 4... Nf6 {[%clk 0:02:59.8]} 5. d3 {[%clk 0:03:03.3]}
5... O-O {[%clk 0:02:59.5]} 6. Nbd2 {[%clk 0:03:03.9]} 6... d5 {[%clk
0:02:58.8]} 7. exd5 {[%clk 0:03:04.1]} 7... Nxd5 {[%clk 0:02:58.9]} 8. Ne4
{[%clk 0:03:04.4]} 8... Be7 {[%clk 0:02:58.7]} 9. O-O {[%clk 0:03:04.3]} 9...
Nb6 {[%clk 0:02:58.4]} 10. Bb3 {[%clk 0:03:04.7]} 10... Kh8 {[%clk 0:02:56.9]}
11. Nfg5 {[%clk 0:03:00.9]} 11... f5 {[%clk 0:02:45.4]} 12. Qh5 {[%clk
0:03:01.1]} 12... Bxg5 {[%clk 0:00:57.1]} 13. Nxg5 {[%clk 0:03:00.2]} 13... Qxg5
{[%clk 0:00:18.4]} 14. Bxg5 {[%clk 0:02:59.6]} 14... a5 {[%clk 0:00:18.9]} 15.
Rae1 {[%clk 0:02:58]} 15... a4 {[%clk 0:00:19.2]} 16. Bf7 {[%clk 0:02:57.9]}
16... Bd7 {[%clk 0:00:18.2]} 17. Bg6 {[%clk 0:02:57.9]} 17... h6 {[%clk
0:00:17.8]} 18. Bxh6 {[%clk 0:02:58]} 18... gxh6 {[%clk 0:00:18.3]} 19. Qxh6+
{[%clk 0:02:58.2]} 19... Kg8 {[%clk 0:00:19.2]} 20. Qh7# {[%clk 0:02:58.5]} 1-0

[Event "*** Titled Tuesday Blitz"]
[Site "Chess.com"]
[Date "2020.03.03"]
[Round "8"]
[White "ChristianAlm"]
[Black "SerGo055"]
[Result "0-1"]
[WhiteElo "2360"]
[BlackElo "2528"]
[TimeControl "180+1"]
[EndTime "14:31:58 PST"]
[Termination "SerGo055 won by resignation"]

1. d4 {[%clk 0:02:59.7]} 1... Nf6 {[%clk 0:02:59.2]} 2. Bg5 {[%clk 0:02:57.9]}
2... d5 {[%clk 0:02:58.1]} 3. Nd2 {[%clk 0:02:57]} 3... Bf5 {[%clk 0:02:57.2]}
4. e3 {[%clk 0:02:56.8]} 4... e6 {[%clk 0:02:57]} 5. Bd3 {[%clk 0:02:56.3]} 5...
Be7 {[%clk 0:02:56]} 6. f4 {[%clk 0:02:54.3]} 6... O-O {[%clk 0:02:50.6]} 7.
Ngf3 {[%clk 0:02:52.2]} 7... Nbd7 {[%clk 0:02:49]} 8. O-O {[%clk 0:02:48.4]}
8... h6 {[%clk 0:02:48.6]} 9. Bh4 {[%clk 0:02:45.8]} 9... Ng4 {[%clk 0:02:46.3]}
10. Bxe7 {[%clk 0:02:41.4]} 10... Qxe7 {[%clk 0:02:47.1]} 11. Qe2 {[%clk
0:02:41.1]} 11... Bxd3 {[%clk 0:02:43.3]} 12. cxd3 {[%clk 0:02:39]} 12... f5
{[%clk 0:02:43.7]} 13. h3 {[%clk 0:02:37.2]} 13... Ngf6 {[%clk 0:02:43.2]} 14.
Ne5 {[%clk 0:02:37.3]} 14... c5 {[%clk 0:02:36.9]} 15. Ng6 {[%clk 0:02:36.5]}
15... Qd6 {[%clk 0:02:36.9]} 16. Nxf8 {[%clk 0:02:35.8]} 16... Rxf8 {[%clk
0:02:37.2]} 17. dxc5 {[%clk 0:02:36.1]} 17... Nxc5 {[%clk 0:02:36.2]} 18. d4
{[%clk 0:02:35.4]} 18... Nce4 {[%clk 0:02:36]} 19. Nxe4 {[%clk 0:02:35.3]} 19...
Nxe4 {[%clk 0:02:35.3]} 20. Rfc1 {[%clk 0:02:35.2]} 20... Kh7 {[%clk 0:02:30.6]}
21. Rc2 {[%clk 0:02:33.8]} 21... Rf7 {[%clk 0:02:29]} 22. Rac1 {[%clk
0:02:30.4]} 22... g5 {[%clk 0:02:29]} 23. Qh5 {[%clk 0:02:16.7]} 23... Rg7
{[%clk 0:02:27.7]} 24. fxg5 {[%clk 0:01:53.8]} 24... Nxg5 {[%clk 0:02:21.9]} 25.
Rc8 {[%clk 0:01:38.6]} 25... Qg3 {[%clk 0:02:21.5]} 26. Qe8 {[%clk 0:00:52.5]}
26... Nxh3+ {[%clk 0:02:07.6]} 0-1

[Event "*** Titled Tuesday Blitz"]
[Site "Chess.com"]
[Date "2020.03.03"]
[Round "8"]
[White "Eloist"]
[Black "MFguimaraes"]
[Result "1/2-1/2"]
[WhiteElo "2297"]
[BlackElo "2405"]
[TimeControl "180+1"]
[EndTime "14:31:58 PST"]
[Termination "Game drawn by repetition"]

1. e4 {[%clk 0:03:00.9]} 1... e5 {[%clk 0:02:58.2]} 2. Bc4 {[%clk 0:02:59.7]}
2... Nf6 {[%clk 0:02:57.8]} 3. d3 {[%clk 0:02:59.7]} 3... c6 {[%clk 0:02:57.9]}
4. Nf3 {[%clk 0:02:59.8]} 4... d5 {[%clk 0:02:58.1]} 5. Bb3 {[%clk 0:02:59.9]}
5... a5 {[%clk 0:02:58.5]} 6. a4 {[%clk 0:02:59.1]} 6... Bd6 {[%clk 0:02:57]} 7.
exd5 {[%clk 0:02:55.4]} 7... Nxd5 {[%clk 0:02:55.9]} 8. O-O {[%clk 0:02:52.8]}
8... O-O {[%clk 0:02:55.5]} 9. Re1 {[%clk 0:02:52.4]} 9... Bg4 {[%clk 0:02:44]}
10. h3 {[%clk 0:02:51.3]} 10... Bh5 {[%clk 0:02:43.7]} 11. Nbd2 {[%clk
0:02:51.2]} 11... Nd7 {[%clk 0:02:42.5]} 12. Ne4 {[%clk 0:02:50.4]} 12... Bc7
{[%clk 0:02:30.9]} 13. Ng3 {[%clk 0:02:48.4]} 13... Bg6 {[%clk 0:02:28.6]} 14.
Bg5 {[%clk 0:02:44.4]} 14... f6 {[%clk 0:02:26.4]} 15. Bd2 {[%clk 0:02:38.2]}
15... Nc5 {[%clk 0:02:25.5]} 16. Bc4 {[%clk 0:02:28.7]} 16... Kh8 {[%clk
0:02:22.7]} 17. Nh4 {[%clk 0:02:26.7]} 17... Bf7 {[%clk 0:02:10.8]} 18. Nhf5
{[%clk 0:02:21.2]} 18... g6 {[%clk 0:02:09.3]} 19. Nh6 {[%clk 0:02:18.3]} 19...
Be6 {[%clk 0:02:06.6]} 20. Ng4 {[%clk 0:02:13.5]} 20... Qd7 {[%clk 0:02:05.2]}
21. Bh6 {[%clk 0:02:09.4]} 21... Rf7 {[%clk 0:02:03.9]} 22. d4 {[%clk
0:02:04.4]} 22... Bxg4 {[%clk 0:01:58.9]} 23. hxg4 {[%clk 0:02:00.8]} 23... exd4
{[%clk 0:01:53.1]} 24. Qxd4 {[%clk 0:01:58.9]} 24... Ne6 {[%clk 0:01:38.6]} 25.
Qe4 {[%clk 0:01:57.8]} 25... Nc5 {[%clk 0:01:23.7]} 26. Qd4 {[%clk 0:01:49.3]}
26... Ne6 {[%clk 0:01:22.5]} 27. Qe4 {[%clk 0:01:46.5]} 27... Nc5 {[%clk
0:01:21.8]} 28. Qd4 {[%clk 0:01:45.7]} 1/2-1/2

[Event "*** Titled Tuesday Blitz"]
[Site "Chess.com"]
[Date "2020.03.03"]
[Round "8"]
[White "MathiasWomacka"]
[Black "VFernandezB"]
[Result "1-0"]
[WhiteElo "2395"]
[BlackElo "2250"]
[TimeControl "180+1"]
[EndTime "14:32:24 PST"]
[Termination "MathiasWomacka won by resignation"]

1. e4 {[%clk 0:03:00.9]} 1... c5 {[%clk 0:02:57.4]} 2. Nf3 {[%clk 0:03:00]} 2...
Nc6 {[%clk 0:02:55.4]} 3. d4 {[%clk 0:02:58.3]} 3... cxd4 {[%clk 0:02:47]} 4.
Nxd4 {[%clk 0:02:59.2]} 4... g6 {[%clk 0:02:46.3]} 5. c4 {[%clk 0:02:58.3]} 5...
Bg7 {[%clk 0:02:46.1]} 6. Be3 {[%clk 0:02:57.7]} 6... Nf6 {[%clk 0:02:44.8]} 7.
Nc3 {[%clk 0:02:57.5]} 7... O-O {[%clk 0:02:40.6]} 8. Be2 {[%clk 0:02:57.1]}
8... d6 {[%clk 0:02:40.7]} 9. O-O {[%clk 0:02:56.3]} 9... Bd7 {[%clk 0:02:40.8]}
10. Qd2 {[%clk 0:02:56.5]} 10... Nxd4 {[%clk 0:02:40.8]} 11. Bxd4 {[%clk
0:02:57.4]} 11... Bc6 {[%clk 0:02:41.2]} 12. f3 {[%clk 0:02:57.6]} 12... a5
{[%clk 0:02:39.3]} 13. b3 {[%clk 0:02:57.1]} 13... Nd7 {[%clk 0:02:39.3]} 14.
Be3 {[%clk 0:02:57.2]} 14... Nc5 {[%clk 0:02:38.4]} 15. Rac1 {[%clk 0:02:55.5]}
15... b6 {[%clk 0:02:38.1]} 16. Rc2 {[%clk 0:02:50.8]} 16... Be5 {[%clk
0:02:38.1]} 17. Nb5 {[%clk 0:02:38.9]} 17... e6 {[%clk 0:02:33.9]} 18. Bg5
{[%clk 0:02:20.9]} 18... f6 {[%clk 0:02:27.3]} 19. Bh6 {[%clk 0:02:11.6]} 19...
Re8 {[%clk 0:02:22.7]} 20. f4 {[%clk 0:02:04.7]} 20... Nxe4 {[%clk 0:02:22]} 21.
Qe3 {[%clk 0:02:01.9]} 21... Bxb5 {[%clk 0:02:17.8]} 22. cxb5 {[%clk 0:01:41.6]}
22... Nc5 {[%clk 0:02:15.6]} 23. fxe5 {[%clk 0:01:41.1]} 23... dxe5 {[%clk
0:02:15.8]} 24. Rd2 {[%clk 0:01:31.1]} 24... Qe7 {[%clk 0:02:13.7]} 25. Bc4
{[%clk 0:01:27.2]} 25... Red8 {[%clk 0:02:13]} 26. Rfd1 {[%clk 0:01:23.4]} 26...
Rxd2 {[%clk 0:02:11]} 27. Qxd2 {[%clk 0:01:22.4]} 27... g5 {[%clk 0:02:08.9]}
28. h4 {[%clk 0:01:18.9]} 28... g4 {[%clk 0:02:07.7]} 29. Qd6 {[%clk 0:01:13]}
29... Kf7 {[%clk 0:02:06.3]} 30. Qxb6 {[%clk 0:01:09.5]} 30... f5 {[%clk
0:02:03.1]} 31. Bg5 {[%clk 0:01:07.4]} 31... Qf8 {[%clk 0:02:01.1]} 32. Qc7+
{[%clk 0:00:58.3]} 32... Kg6 {[%clk 0:01:59.1]} 33. Be7 {[%clk 0:00:57.1]} 33...
Qc8 {[%clk 0:01:55.9]} 34. Qxc5 {[%clk 0:00:55.7]} 1-0

[Event "*** Titled Tuesday Blitz"]
[Site "Chess.com"]
[Date "2020.03.03"]
[Round "8"]
[White "DonPreuss"]
[Black "stoleriu"]
[Result "0-1"]
[WhiteElo "2205"]
[BlackElo "2475"]
[TimeControl "180+1"]
[EndTime "14:32:28 PST"]
[Termination "stoleriu won by resignation"]

1. Nc3 {[%clk 0:03:00.5]} 1... e6 {[%clk 0:03:00.9]} 2. e4 {[%clk 0:02:56]} 2...
d5 {[%clk 0:03:00]} 3. d4 {[%clk 0:02:56.2]} 3... Bb4 {[%clk 0:02:59]} 4. exd5
{[%clk 0:02:55.7]} 4... exd5 {[%clk 0:02:58.4]} 5. Bd3 {[%clk 0:02:55.8]} 5...
Nc6 {[%clk 0:02:58.7]} 6. Ne2 {[%clk 0:02:56.2]} 6... Bg4 {[%clk 0:02:55.9]} 7.
f3 {[%clk 0:02:55.9]} 7... Bh5 {[%clk 0:02:55.9]} 8. O-O {[%clk 0:02:56.3]} 8...
Nge7 {[%clk 0:02:55.6]} 9. Ng3 {[%clk 0:02:53.8]} 9... Bg6 {[%clk 0:02:54.1]}
10. f4 {[%clk 0:02:54.1]} 10... Bxd3 {[%clk 0:02:52.2]} 11. Qxd3 {[%clk
0:02:55]} 11... Qd7 {[%clk 0:02:52.6]} 12. f5 {[%clk 0:02:48.6]} 12... f6 {[%clk
0:02:47.3]} 13. Nce2 {[%clk 0:02:38.6]} 13... Bd6 {[%clk 0:02:44.4]} 14. c3
{[%clk 0:02:27.7]} 14... O-O-O {[%clk 0:02:43.2]} 15. Bf4 {[%clk 0:02:00.3]}
15... h5 {[%clk 0:02:36.8]} 16. Bxd6 {[%clk 0:01:57.7]} 16... Qxd6 {[%clk
0:02:37.7]} 17. Nf4 {[%clk 0:01:57.6]} 17... h4 {[%clk 0:02:37.5]} 18. Nge2
{[%clk 0:01:57]} 18... Rdg8 {[%clk 0:02:33.3]} 19. Ng6 {[%clk 0:01:43]} 19...
Nxg6 {[%clk 0:02:32.5]} 20. fxg6 {[%clk 0:01:43.2]} 20... Re8 {[%clk 0:02:32.4]}
21. Nf4 {[%clk 0:01:37.7]} 21... Re4 {[%clk 0:02:32.3]} 22. Qf3 {[%clk
0:01:31.7]} 22... Rhe8 {[%clk 0:02:29.6]} 23. Qg4+ {[%clk 0:01:24.5]} 23... Kb8
{[%clk 0:02:28.8]} 24. Qxh4 {[%clk 0:01:24.7]} 24... Na5 {[%clk 0:02:23.7]} 25.
b3 {[%clk 0:01:20.9]} 25... c5 {[%clk 0:02:17.8]} 26. Qh7 {[%clk 0:01:17.7]}
26... Rxf4 {[%clk 0:02:13.4]} 27. Rxf4 {[%clk 0:01:16.1]} 27... Qxf4 {[%clk
0:02:14.3]} 28. Rf1 {[%clk 0:01:09.3]} 28... Qe3+ {[%clk 0:02:10.2]} 29. Kh1
{[%clk 0:01:08.9]} 29... Qf2 {[%clk 0:01:51.5]} 30. Rg1 {[%clk 0:01:04.3]} 30...
Re1 {[%clk 0:01:39.1]} 31. Qg8+ {[%clk 0:01:02]} 31... Kc7 {[%clk 0:01:38.7]}
0-1

[Event "*** Titled Tuesday Blitz"]
[Site "Chess.com"]
[Date "2020.03.03"]
[Round "8"]
[White "RemcoSpr"]
[Black "PNEPaul"]
[Result "1-0"]
[WhiteElo "2245"]
[BlackElo "1928"]
[TimeControl "180+1"]
[EndTime "14:32:31 PST"]
[Termination "RemcoSpr won by resignation"]

1. e4 {[%clk 0:03:00]} 1... e5 {[%clk 0:02:52.9]} 2. Nf3 {[%clk 0:02:59.6]} 2...
Nc6 {[%clk 0:02:52.4]} 3. d4 {[%clk 0:02:55.4]} 3... exd4 {[%clk 0:02:51.6]} 4.
Nxd4 {[%clk 0:02:56.3]} 4... Be7 {[%clk 0:02:51]} 5. Nf5 {[%clk 0:02:55.7]} 5...
Bf6 {[%clk 0:02:47.6]} 6. Nc3 {[%clk 0:02:53.9]} 6... d6 {[%clk 0:02:46.3]} 7.
Ne3 {[%clk 0:02:53.1]} 7... Nge7 {[%clk 0:02:35.7]} 8. Ncd5 {[%clk 0:02:52.3]}
8... Nxd5 {[%clk 0:02:34.9]} 9. Nxd5 {[%clk 0:02:53.2]} 9... Be6 {[%clk
0:02:33.1]} 10. c3 {[%clk 0:02:27.9]} 10... Bxd5 {[%clk 0:02:31.8]} 11. exd5
{[%clk 0:02:27.7]} 11... Ne7 {[%clk 0:02:26.3]} 12. Bc4 {[%clk 0:02:08.5]} 12...
O-O {[%clk 0:02:24.9]} 13. O-O {[%clk 0:02:08]} 13... Ng6 {[%clk 0:02:21.1]} 14.
a4 {[%clk 0:02:04.8]} 14... Ne5 {[%clk 0:02:20.3]} 15. Be2 {[%clk 0:02:04]}
15... c6 {[%clk 0:02:07.9]} 16. f4 {[%clk 0:01:53.1]} 16... Ng6 {[%clk
0:02:06.1]} 17. g3 {[%clk 0:01:52.2]} 17... Qb6+ {[%clk 0:02:00]} 18. Kg2 {[%clk
0:01:51.6]} 18... Rfe8 {[%clk 0:01:56.8]} 19. Bf3 {[%clk 0:01:50.7]} 19... Rad8
{[%clk 0:01:48.3]} 20. a5 {[%clk 0:01:49.7]} 20... Qc5 {[%clk 0:01:37.3]} 21. a6
{[%clk 0:01:44.9]} 21... bxa6 {[%clk 0:01:16.5]} 22. dxc6 {[%clk 0:01:44.5]}
22... d5 {[%clk 0:01:16.6]} 23. Rxa6 {[%clk 0:01:42.4]} 23... Re6 {[%clk
0:01:07.3]} 24. Qd3 {[%clk 0:01:39.6]} 24... Rxc6 {[%clk 0:01:02.2]} 25. Be3
{[%clk 0:01:39]} 25... Qd6 {[%clk 0:00:58.1]} 26. Rxa7 {[%clk 0:01:30.3]} 26...
Ra6 {[%clk 0:00:51.1]} 27. Rxa6 {[%clk 0:01:29.5]} 27... Qxa6 {[%clk 0:00:49.2]}
28. Qxa6 {[%clk 0:01:29]} 1-0

[Event "*** Titled Tuesday Blitz"]
[Site "Chess.com"]
[Date "2020.03.03"]
[Round "8"]
[White "GMsKoRPioN"]
[Black "Mbneu"]
[Result "1-0"]
[WhiteElo "2464"]
[BlackElo "2208"]
[TimeControl "180+1"]
[EndTime "14:32:56 PST"]
[Termination "GMsKoRPioN won by resignation"]

1. d4 {[%clk 0:02:59.3]} 1... Nf6 {[%clk 0:02:58.4]} 2. c4 {[%clk 0:02:57.1]}
2... c5 {[%clk 0:02:58.3]} 3. d5 {[%clk 0:02:57.1]} 3... e6 {[%clk 0:02:58.6]}
4. Nc3 {[%clk 0:02:56.9]} 4... exd5 {[%clk 0:02:58.7]} 5. cxd5 {[%clk
0:02:57.8]} 5... d6 {[%clk 0:02:59.1]} 6. e4 {[%clk 0:02:58.4]} 6... g6 {[%clk
0:02:59.5]} 7. f4 {[%clk 0:02:59]} 7... Bg7 {[%clk 0:02:59.2]} 8. Bb5+ {[%clk
0:02:59.6]} 8... Nfd7 {[%clk 0:02:57.6]} 9. a4 {[%clk 0:03:00.1]} 9... Qh4+
{[%clk 0:02:55.4]} 10. g3 {[%clk 0:02:59.2]} 10... Qe7 {[%clk 0:02:55.2]} 11.
Nf3 {[%clk 0:02:59.3]} 11... O-O {[%clk 0:02:54.3]} 12. O-O {[%clk 0:02:59.8]}
12... Nf6 {[%clk 0:02:10.5]} 13. e5 {[%clk 0:02:55]} 13... Nh5 {[%clk
0:01:56.5]} 14. exd6 {[%clk 0:02:48.7]} 14... Qxd6 {[%clk 0:01:53.4]} 15. Ne4
{[%clk 0:02:47.5]} 15... Qe7 {[%clk 0:01:39.4]} 16. Re1 {[%clk 0:02:47.8]} 16...
Qd8 {[%clk 0:01:15.4]} 17. Nf2 {[%clk 0:02:46.1]} 17... Na6 {[%clk 0:01:08.2]}
18. d6 {[%clk 0:02:39.8]} 18... Bd7 {[%clk 0:01:02.8]} 19. Bxd7 {[%clk
0:02:22.1]} 19... Qxd7 {[%clk 0:01:02.1]} 20. Re7 {[%clk 0:02:22.7]} 20... Qd8
{[%clk 0:00:53.8]} 21. Ne5 {[%clk 0:02:21.2]} 21... Rb8 {[%clk 0:00:46.5]} 22.
Nd7 {[%clk 0:02:16.8]} 22... Bd4 {[%clk 0:00:38.5]} 23. Nxf8 {[%clk 0:02:06.8]}
23... Qxf8 {[%clk 0:00:37.3]} 24. Kg2 {[%clk 0:02:04.2]} 24... Rd8 {[%clk
0:00:33.7]} 25. Ne4 {[%clk 0:02:02.2]} 25... f5 {[%clk 0:00:28.8]} 26. Qb3+
{[%clk 0:01:57.1]} 26... Kh8 {[%clk 0:00:25.7]} 27. Ng5 {[%clk 0:01:57.6]} 27...
Nf6 {[%clk 0:00:20.7]} 28. Qe6 {[%clk 0:01:57.7]} 28... Rxd6 {[%clk 0:00:13.2]}
29. Qxd6 {[%clk 0:01:55.7]} 1-0

[Event "*** Titled Tuesday Blitz"]
[Site "Chess.com"]
[Date "2020.03.03"]
[Round "8"]
[White "NikolaGry"]
[Black "denizozen"]
[Result "1-0"]
[WhiteElo "2672"]
[BlackElo "2830"]
[TimeControl "180+1"]
[EndTime "14:33:11 PST"]
[Termination "NikolaGry won on time"]

1. b3 {[%clk 0:03:00.9]} 1... Nf6 {[%clk 0:02:57.9]} 2. Bb2 {[%clk 0:03:00.9]}
2... d5 {[%clk 0:02:51.3]} 3. e3 {[%clk 0:02:59]} 3... c5 {[%clk 0:02:51]} 4.
Nf3 {[%clk 0:02:58.7]} 4... Nc6 {[%clk 0:02:50.7]} 5. Bb5 {[%clk 0:02:56]} 5...
Bd7 {[%clk 0:02:50.3]} 6. O-O {[%clk 0:02:55.2]} 6... e6 {[%clk 0:02:50.3]} 7.
d3 {[%clk 0:02:51.4]} 7... Bd6 {[%clk 0:02:49.9]} 8. Bxc6 {[%clk 0:02:51.4]}
8... Bxc6 {[%clk 0:02:48.4]} 9. Ne5 {[%clk 0:02:51.4]} 9... Qc7 {[%clk
0:02:47.8]} 10. f4 {[%clk 0:02:50.7]} 10... Nd7 {[%clk 0:02:47.8]} 11. Nxd7
{[%clk 0:02:43.4]} 11... Qxd7 {[%clk 0:02:47.5]} 12. Bxg7 {[%clk 0:02:33.1]}
12... Rg8 {[%clk 0:02:47.7]} 13. Be5 {[%clk 0:02:05.5]} 13... d4 {[%clk
0:02:12.6]} 14. e4 {[%clk 0:01:58.8]} 14... Bxe5 {[%clk 0:02:10.7]} 15. fxe5
{[%clk 0:01:58.2]} 15... Rg5 {[%clk 0:02:11.4]} 16. Nd2 {[%clk 0:01:52.1]} 16...
Rxe5 {[%clk 0:02:09.4]} 17. Qg4 {[%clk 0:01:38.7]} 17... Qe7 {[%clk 0:01:42.1]}
18. Nf3 {[%clk 0:01:29.1]} 18... Rg5 {[%clk 0:00:01.6]} 19. Nxg5 {[%clk
0:01:25.2]} 19... O-O-O {[%clk 0:00:01.8]} 20. Rxf7 {[%clk 0:01:24.1]} 1-0

[Event "*** Titled Tuesday Blitz"]
[Site "Chess.com"]
[Date "2020.03.03"]
[Round "8"]
[White "SCIM"]
[Black "NoGalloNoParty"]
[Result "1-0"]
[WhiteElo "2465"]
[BlackElo "2288"]
[TimeControl "180+1"]
[EndTime "14:33:12 PST"]
[Termination "SCIM won by resignation"]

1. d4 {[%clk 0:02:29]} 1... Nf6 {[%clk 0:02:36.3]} 2. c4 {[%clk 0:02:28]} 2...
g6 {[%clk 0:02:36.5]} 3. g3 {[%clk 0:02:28.5]} 3... c6 {[%clk 0:02:36.1]} 4. Nf3
{[%clk 0:02:29.4]} 4... d5 {[%clk 0:02:36.7]} 5. Bg2 {[%clk 0:02:29.1]} 5... Bg7
{[%clk 0:02:37.3]} 6. O-O {[%clk 0:02:29.1]} 6... O-O {[%clk 0:02:37]} 7. cxd5
{[%clk 0:02:28.7]} 7... cxd5 {[%clk 0:02:36.8]} 8. Ne5 {[%clk 0:02:29.2]} 8...
Ng4 {[%clk 0:02:36.2]} 9. Nf3 {[%clk 0:02:26.2]} 9... Nf6 {[%clk 0:02:35.4]} 10.
Nc3 {[%clk 0:02:26.7]} 10... Ne4 {[%clk 0:02:34.2]} 11. Qb3 {[%clk 0:02:23.6]}
11... Nc6 {[%clk 0:02:33.3]} 12. Rd1 {[%clk 0:02:18.1]} 12... Nxc3 {[%clk
0:02:30.8]} 13. bxc3 {[%clk 0:02:17.3]} 13... Na5 {[%clk 0:02:22.1]} 14. Qb4
{[%clk 0:02:15.1]} 14... b6 {[%clk 0:02:04.8]} 15. Ne5 {[%clk 0:02:12.5]} 15...
Bb7 {[%clk 0:01:59]} 16. Ba3 {[%clk 0:02:05]} 16... e6 {[%clk 0:01:50]} 17. c4
{[%clk 0:01:47.2]} 17... Rc8 {[%clk 0:01:48.1]} 18. Qb5 {[%clk 0:01:32.7]} 18...
Re8 {[%clk 0:01:38.1]} 19. Rac1 {[%clk 0:01:25.3]} 19... dxc4 {[%clk 0:01:12.7]}
20. Bxb7 {[%clk 0:01:18.3]} 20... Nxb7 {[%clk 0:01:13.6]} 21. Nxc4 {[%clk
0:01:06.6]} 21... Qd5 {[%clk 0:01:07.3]} 22. Qxd5 {[%clk 0:01:01.9]} 22... exd5
{[%clk 0:01:06.7]} 23. Ne3 {[%clk 0:01:02.2]} 23... Rxc1 {[%clk 0:01:01.8]} 24.
Rxc1 {[%clk 0:01:03.1]} 24... Bxd4 {[%clk 0:01:01]} 25. Nxd5 {[%clk 0:00:58.7]}
25... Rxe2 {[%clk 0:00:52.7]} 26. Rc8+ {[%clk 0:00:57.3]} 1-0

[Event "*** Titled Tuesday Blitz"]
[Site "Chess.com"]
[Date "2020.03.03"]
[Round "8"]
[White "kleopl"]
[Black "RitvarsReimanis"]
[Result "1-0"]
[WhiteElo "2492"]
[BlackElo "2603"]
[TimeControl "180+1"]
[EndTime "14:33:14 PST"]
[Termination "kleopl won by checkmate"]

1. c4 {[%clk 0:03:00.9]} 1... e6 {[%clk 0:02:59.3]} 2. Nc3 {[%clk 0:02:59.4]}
2... d5 {[%clk 0:02:59.6]} 3. d4 {[%clk 0:02:58.6]} 3... Nf6 {[%clk 0:02:58.9]}
4. cxd5 {[%clk 0:02:57.5]} 4... exd5 {[%clk 0:02:58.6]} 5. Bg5 {[%clk 0:02:57]}
5... c6 {[%clk 0:02:58.8]} 6. e3 {[%clk 0:02:57.1]} 6... Be7 {[%clk 0:02:59.3]}
7. Bd3 {[%clk 0:02:56.5]} 7... Nbd7 {[%clk 0:02:59.9]} 8. Nf3 {[%clk 0:02:55.6]}
8... Nf8 {[%clk 0:02:59.7]} 9. O-O {[%clk 0:02:54.8]} 9... Ng6 {[%clk
0:02:55.5]} 10. Bxf6 {[%clk 0:02:52.4]} 10... Bxf6 {[%clk 0:02:54.8]} 11. b4
{[%clk 0:02:52.7]} 11... a6 {[%clk 0:02:54.7]} 12. a4 {[%clk 0:02:52.4]} 12...
O-O {[%clk 0:02:53.1]} 13. b5 {[%clk 0:02:52.4]} 13... c5 {[%clk 0:02:49.2]} 14.
bxa6 {[%clk 0:02:51.5]} 14... bxa6 {[%clk 0:02:47]} 15. Rb1 {[%clk 0:02:48]}
15... c4 {[%clk 0:02:40.3]} 16. Bc2 {[%clk 0:02:46.7]} 16... a5 {[%clk
0:02:33.8]} 17. Nd2 {[%clk 0:02:44.8]} 17... Be7 {[%clk 0:02:28.4]} 18. Nxd5
{[%clk 0:02:29.4]} 18... Qxd5 {[%clk 0:01:49.7]} 19. Be4 {[%clk 0:02:29]} 19...
Qd8 {[%clk 0:01:19]} 20. Bxa8 {[%clk 0:02:28.8]} 20... c3 {[%clk 0:01:14.6]} 21.
Ne4 {[%clk 0:02:27.3]} 21... Ba6 {[%clk 0:01:14.2]} 22. Bc6 {[%clk 0:02:10.7]}
22... Bxf1 {[%clk 0:01:13.2]} 23. Qxf1 {[%clk 0:02:11.6]} 23... Qc7 {[%clk
0:01:00.2]} 24. Qc4 {[%clk 0:02:06.9]} 24... Rc8 {[%clk 0:00:51.6]} 25. d5
{[%clk 0:02:07]} 25... Ne5 {[%clk 0:00:46]} 26. Qxc3 {[%clk 0:02:06.6]} 26...
Nxc6 {[%clk 0:00:46.2]} 27. Rc1 {[%clk 0:01:45.2]} 27... f5 {[%clk 0:00:29.6]}
28. Ng3 {[%clk 0:01:41.5]} 28... f4 {[%clk 0:00:19.7]} 29. Nf5 {[%clk
0:01:27.7]} 29... fxe3 {[%clk 0:00:17.6]} 30. Qxg7# {[%clk 0:01:26.8]} 1-0